[Event "USA-ch Women 2024"]
[Site "Saint Louis"]
[Date "2024.10.17"]
[Round "6.1"]
[White "Pourkashiyan, Atousa"]
[Black "Lee, Megan"]
[Result "1/2-1/2"]
[ECO "D00"]
[WhiteElo "2269"]
[BlackElo "2253"]
[Annotator "RC"]
[PlyCount "138"]
[EventDate "2024.10.09"]
[EventType "tourn"]
[EventCountry "USA"]
[SourceTitle "playchess.com"]
[Source "ChessBase"]
[SourceQuality "1"]
[TimeControl "40/5400+30:1800+30"]

1. d4 {[%emt 0:01:40]} Nf6 {[%emt 0:00:12]} 2. Nc3 {[%emt 0:00:07]} d5 {[%emt 0:00:28]} 3. Bf4 {[%emt 0:00:42]} e6 {[%emt 0:02:51]} 4. Nb5 {[%emt 0:00:41]} Na6 {[%emt 0:00:45]} 5. e3 {[%emt 0:00:36]} c6 {[%emt 0:05:16]} 6. Nc3 {[%emt 0:00:44]} c5 {[%emt 0:02:08]} 7. Nf3 {[%emt 0:02:50]} Bd7 {[%emt 0:02:55]} 8. Ne5 {[%emt 0:05:55]} cxd4 {[%emt 0:04:48]} 9. exd4 {[%emt 0:01:10]} Bb4 {[%emt 0:00:23]} 10. Bxa6 {[%emt 0:20:05]} bxa6 {[%emt 0:03:57]} 11. O-O {[%emt 0:01:16]} Bxc3 {[%emt 0:03:56]} 12. bxc3 {[%emt 0:00:18]} Rc8 {[%emt 0:01:17]} 13. Bg5 {[%emt 0:05:59]} Rxc3 {[%emt 0:07:38]} 14. Ng4 {[%emt 0:04:40]} h6 {[%emt 0:10:24]} 15. Nxf6+ {[%emt 0:04:54]} gxf6 {[%emt 0:00:01]} 16. Bh4 {[%emt 0:01:24]} Rg8 {[%emt 0:12:42]} 17. Qd2 {[%emt 0:04:26]} Rc4 {[%emt 0:01:17]} 18. Qxh6 {[%emt 0:05:18]} Rg6 {[%emt 0:00:18]} 19. Qe3 {[%emt 0:00:44]} Rg4 {[%emt 0:07:01]} 20. Qh6 {[%emt 0:04:37]} Rg6 {[%emt 0:00:04]} 21. Qe3 {[%emt 0:02:40]} Rg4 {[%emt 0:01:52]} 22. Bg3 {[%emt 0:01:32]} Rgxd4 {[%emt 0:04:11]} 23. Rfb1 {[%emt 0:01:24]} Bb5 {[%emt 0:02:54]} 24. c3 {[%emt 0:05:36]} Re4 {[%emt 0:01:20]} 25. Qh6 {[%emt 0:04:03]} Ra4 {[%emt 0:04:17]} 26. h4 {[%emt 0:03:02]} Ke7 {[%emt 0:01:09]} 27. Rb4 {[%emt 0:04:02]} Raxb4 {[%emt 0:01:50]} 28. cxb4 {[%emt 0:00:01]} Rxb4 {[%emt 0:00:28]} 29. Qg7 {[%emt 0:02:05]} d4 {[%emt 0:11:15]} 30. Qg4 {[%emt 0:04:26]} Rc4 {[%emt 0:01:02]} 31. a4 {[%emt 0:02:57]} Bxa4 {[%emt 0:00:55]} 32. h5 {[%emt 0:00:21]} Bb5 {[%emt 0:01:01]} 33. h6 {[%emt 0:02:20]} d3 {[%emt 0:00:29]} 34. Qd1 {[%emt 0:01:32]} d2 {[%emt 0:00:49]} 35. h7 {[%emt 0:00:31]} Rd4 {[%emt 0:03:32]} 36. Bc7 {[%emt 0:01:20]} Qh8 {[%emt 0:01:04]} 37. Qf3 {[%emt 0:02:07]} Qxh7 {[%emt 0:00:36]} 38. Ba5 {[%emt 0:00:32]} Qc2 {[%emt 0:01:36]} 39. Rd1 {[%emt 0:00:47]} Qxd1+ {[%emt 0:00:47]} 40. Qxd1 {[%emt 0:00:03]} Be2 {[%emt 0:00:24]} 41. Bb4+ {[%emt 0:05:20]} Kd8 {[%emt 0:01:38]} 42. Qxd2 {[%emt 0:03:53]} Rxd2 {[%emt 0:00:05]} 43. Bxd2 {[%emt 0:00:03]} Kc7 {[%emt 0:01:51]} 44. f4 {[%emt 0:02:03]} Kb6 {[%emt 0:03:58]} 45. Kf2 {[%emt 0:01:17]} Bc4 {[%emt 0:02:30]} 46. Ke3 {[%emt 0:03:54]} a5 {[%emt 0:01:51]} 47. Kd4 {[%emt 0:01:02]} Bd5 {[%emt 0:02:37]} 48. g4 {[%emt 0:03:39]} Kb5 {[%emt 0:02:14]} 49. Bc3 {[%emt 0:06:47]} Bf3 {[%emt 0:02:46]} 50. Kd3 {[%emt 0:03:25]} Bxg4 {[%emt 0:03:24]} 51. Bxf6 {[%emt 0:00:04]} a4 {[%emt 0:03:18]} 52. Kc3 {[%emt 0:00:53]} Bd1 {[%emt 0:01:48]} 53. Kb2 {[%emt 0:00:28]} Kb4 {[%emt 0:01:52]} 54. Be7+ {[%emt 0:00:48]} Kc4 {[%emt 0:00:05]} 55. Bd6 {[%emt 0:00:58]} Kd5 {[%emt 0:01:07]} 56. Bc7 {[%emt 0:00:27]} Ke4 {[%emt 0:00:43]} 57. Bd6 {[%emt 0:00:18]} f6 {[%emt 0:00:43]} 58. Bb8 {[%emt 0:00:33]} Bb3 {[%emt 0:00:23]} 59. Bc7 {[%emt 0:00:20]} e5 {[%emt 0:00:55]} 60. fxe5 {[%emt 0:00:17]} f5 {[%emt 0:00:13]} 61. Bb8 {[%emt 0:00:46]} a6 {[%emt 0:00:09]} 62. e6 {[%emt 0:02:46]} Bxe6 {[%emt 0:00:05]} 63. Bc7 {[%emt 0:00:09]} f4 {[%emt 0:00:19]} 64. Bxf4 {[%emt 0:00:08]} Kxf4 {[%emt 0:00:04]} 65. Ka1 {[%emt 0:00:06]} Ke3 {[%emt 0:00:43]} 66. Kb2 {[%emt 0:00:03]} Kd2 {[%emt 0:00:04]} 67. Ka1 {[%emt 0:00:05]} Kd1 {[%emt 0:00:12]} 68. Kb2 {[%emt 0:00:05]} a3+ {[%emt 0:00:05]} 69. Ka1 {[%emt 0:00:14]} Kc1 {[%emt 0:00:44]} 1/2-1/2

[Event "USA-ch Women 2024"]
[Site "Saint Louis"]
[Date "2024.10.17"]
[Round "6.2"]
[White "Krush, Irina"]
[Black "Atwell, Rose"]
[Result "1-0"]
[ECO "A28"]
[WhiteElo "2388"]
[BlackElo "2185"]
[Annotator "TA"]
[PlyCount "61"]
[EventDate "2024.10.09"]
[EventType "tourn"]
[EventCountry "USA"]
[SourceTitle "playchess.com"]
[Source "ChessBase"]
[SourceQuality "1"]
[TimeControl "40/5400+30:1800+30"]

{[%evp 13,61,0,17,0,0,0,0,-4,10,8,35,29,116,102,128,115,195,182,187,183,177,170,304,304,333,250,241,252,447,468,485,498,520,537,551,557,604,585,641,650,922,912,1641,1640,1720,1658,2758,2941,2840,2711]} 1. c4 {[%emt 0:00:04]} e5 {[%emt 0:00:04]} 2. Nc3 {[%emt 0:00:10]} Nf6 {[%emt 0:00:21]} 3. Nf3 {[%emt 0:00:17]} Nc6 {[%emt 0:01:01]} 4. e3 {[%emt 0:00:18]} Bb4 {[%emt 0:02:43]} 5. Qc2 {[%emt 0:03:03]} O-O {[%emt 0:06:07]} 6. Nd5 {[%emt 0:01:05]} Re8 {[%emt 0:03:52]} 7. Bd3 {[%emt 0:02:15][%cal Bf1d3,Bd3e4,Be4b7][%mdl 32]} h6 {[%emt 0:03:53]} 8. a3 {[%emt 0:07:12]} Bf8 {[%emt 0:02:14]} 9. Nxf6+ {[%emt 0:01:24]} Qxf6 {[%emt 0:00:27]} 10. Be4 {[%emt 0:00:31] The position is equal.} d6 {[%emt 0:02:57]} 11. b4 {[%emt 0:03:58]} Bg4 {[%emt 0:03:56]} 12. Bb2 {[%emt 0:01:30]} Ne7 {[%emt 0:08:33]} (12... g6 $11) 13. Bxb7 $16 {[%emt 0:05:17] White is more active.} Rab8 {[%emt 0:01:35]} 14. Be4 {[%emt 0:00:19]} c6 {[%emt 0:03:16] [#]} (14... Qe6 $16) 15. d4 $1 $18 {[%emt 0:16:23]} Qe6 {[%emt 0:16:21]} 16. dxe5 {[%emt 0:02:33]} dxe5 {[%emt 0:06:54]} 17. Nxe5 {[%emt 0:01:40]} Bh5 {[%emt 0:02:16]} (17... Bf5 $142) 18. O-O {[%emt 0:06:12]} a5 {[%emt 0:05:05]} 19. bxa5 {[%emt 0:06:42]} f6 {[%emt 0:04:35]} 20. Bf3 $1 {[%emt 0:00:48]} fxe5 $2 {[%emt 0:03:39]} (20... Bxf3 21. Nxf3 c5) 21. Bxh5 {[%emt 0:00:10] White is clearly winning.} g6 {[%emt 0:00:14]} 22. Be2 {[%emt 0:02:19]} Nf5 {[%emt 0:02:25]} 23. c5 {[%emt 0:03:12] [#] Bc4 would now be deadly.} Kh7 {[%emt 0:01:51]} 24. Rab1 {[%emt 0:00:09]} Qe7 {[%emt 0:03:03]} 25. Rfc1 {[%emt 0:02:46]} e4 {[%emt 0:01:10]} 26. a6 {[%emt 0:01:19]} Qg5 {[%emt 0:03:15]} 27. Ba1 {[%emt 0:02:23]} Nh4 {[%emt 0:03:03]} 28. g3 {[%emt 0:00:40]} Bxc5 {[%emt 0:02:45]} 29. Qc3 {[%emt 0:03:22]} Nf5 {[%emt 0:03:19] Prevents Qg7+} 30. Rxb8 {[%emt 0:01:19]} Rxb8 {[%emt 0:01:42]} 31. Qxc5 {[%emt 0:00:14] White took control after the opening.   Weighted Error Value: White=0.07 (flawless) /Black=0.48.  Mistake:       	---       	Black=4      Inaccurate:     	---       	Black=2      OK:         	White=11    	Black=2      Best:        	White=2     	---        Strong:       	White=1     	---} 1-0

[Event "USA-ch Women 2024"]
[Site "Saint Louis"]
[Date "2024.10.17"]
[Round "6.3"]
[White "Lee, Alice"]
[Black "Yu, Jennifer"]
[Result "1-0"]
[ECO "D30"]
[WhiteElo "2395"]
[BlackElo "2267"]
[Annotator "TA"]
[PlyCount "75"]
[EventDate "2024.10.09"]
[EventType "tourn"]
[EventCountry "USA"]
[SourceTitle "playchess.com"]
[Source "ChessBase"]
[SourceQuality "1"]
[TimeControl "40/5400+30:1800+30"]

{[%evp 12,75,31,21,63,20,19,1,19,8,32,5,22,0,45,38,45,0,0,0,96,102,86,83,95,84,102,108,181,181,245,257,272,213,204,131,151,38,58,21,206,222,227,224,313,255,250,237,245,241,245,244,518,495,629,625,866,835,29962,6395,29975,29976,29979,29979,29985,29986]} 1. d4 {[%emt 0:00:12]} d5 {[%emt 0:03:19]} 2. c4 {[%emt 0:00:13]} c6 {[%emt 0:00:24]} 3. Nf3 {[%emt 0:00:13]} Nf6 {[%emt 0:00:11]} 4. e3 {[%emt 0:00:52]} e6 {[%emt 0:00:42]} 5. Bd3 {[%emt 0:00:30]} Nbd7 {[%emt 0:02:13]} 6. O-O {[%emt 0:00:52]} Bd6 {[%emt 0:02:08]} 7. Nbd2 {[%emt 0:00:22]} b6 {[%emt 0:07:12]} 8. e4 {[%emt 0:08:37]} dxe4 {[%emt 0:01:02]} 9. Nxe4 {[%emt 0:00:25]} Nxe4 {[%emt 0:00:49] The position is equal.} 10. Bxe4 {[%emt 0:00:11]} Bb7 {[%emt 0:00:02]} 11. Qe2 {[%emt 0:11:20]} Qc7 {[%emt 0:12:43]} 12. Rd1 {[%emt 0:07:07]} Nf6 {[%emt 0:05:08]} 13. Bc2 {[%emt 0:11:21]} h6 {[%emt 0:05:23]} 14. b3 {[%emt 0:00:00][%cal Bb2b3,Bb3b4][%mdl 32]} c5 {[%emt 0:12:34]} 15. Bb2 {[%emt 0:05:55]} Qe7 {[%emt 0:06:32]} (15... cxd4 $11 {remains equal.} 16. Bxd4 Rc8) 16. dxc5 $16 {[%emt 0:07:25]} bxc5 {[%emt 0:04:45] [#]} 17. b4 $1 {[%emt 0:03:56]} O-O {[%emt 0:05:52]} 18. b5 {[%emt 0:02:36]} Rfd8 {[%emt 0:01:35]} 19. a4 {[%emt 0:02:05][%cal Ba2a4,Ba4a5][%mdl 32] White is more active.} a6 {[%emt 0:08:16] [#]} (19... Bc7 $16) 20. a5 $1 $18 {[%emt 0:01:35]} axb5 {[%emt 0:06:30]} (20... Nd7 $142 21. Be4 Bxe4) 21. cxb5 {[%emt 0:00:26]} Bd5 {[%emt 0:00:07]} 22. Rdb1 {[%emt 0:10:18]} c4 {[%emt 0:00:23]} 23. Bd4 {[%emt 0:07:07]} e5 {[%emt 0:05:50]} 24. Be3 {[%emt 0:00:00]} (24. Bxe5 $2 {perishes.} Bxf3 25. gxf3 Qxe5 $19 (25... Bxe5 26. f4 $11)) ({Better is} 24. Bc3 $16) 24... Ng4 $1 $14 {[%emt 0:01:29]} 25. Bb6 {[%emt 0:00:00] Nd2 would now be deadly.} Rdb8 $2 {[%emt 0:01:15] Black cannot hold the game after this.} (25... e4 $1 $11 {and Black stays safe.} 26. Bxd8 Rxd8) 26. h3 $18 {[%emt 0:00:00]} Nf6 {[%emt 0:04:48]} 27. Nd2 {[%emt 0:03:06]} Nd7 {[%emt 0:01:42]} 28. Nxc4 {[%emt 0:00:33]} Bxc4 {[%emt 0:00:21]} 29. Qxc4 {[%emt 0:00:02]} Nxb6 {[%emt 0:00:15]} 30. axb6 $40 {[%emt 0:00:03][%mdl 128] White attacks with force.} Rxa1 {[%emt 0:00:10]} 31. Rxa1 {[%emt 0:00:03][%cal Bb1a1,Ba1a6,Ba6d6,Bd6d7][%mdl 32] Black is weak on the light squares} Qf6 $2 {[%emt 0:01:56] [#]} (31... g6 {was necessary.} 32. Ra7 (32. Bxg6 Rxb6 33. Bd3 Bb8 $18) 32... Qf6) 32. b7 $1 {[%emt 0:01:01][%mdl 512]} g6 {[%emt 0:00:53]} (32... Qe6 33. Qc6) 33. Ra6 {[%emt 0:00:14] And now Qd5 would win.} Qe7 {[%emt 0:00:00]} 34. Qd5 {[%emt 0:01:05]} Rxb7 {[%emt 0:00:11]} 35. Rxd6 {[%emt 0:00:28]} Kg7 {[%emt 0:00:33]} 36. b6 {[%emt 0:00:35] White mates.} Rb8 {[%emt 0:00:25] [#]} 37. Bxg6 $1 {[%emt 0:00:05]} Rc8 {[%emt 0:00:38]} (37... Rf8 38. Rd7) 38. Rd7 {[%emt 0:00:17] Weighted Error Value: White=0.24 (precise) /Black=0.71.  Loses game:     	---       	Black=1      Mistake:       	White=1     	Black=4      Inaccurate:     	White=5     	Black=3      OK:         	White=9     	Black=6      Best:        	White=1     	Black=1      Strong:       	---       	Black=1} 1-0

[Event "USA-ch Women 2024"]
[Site "Saint Louis"]
[Date "2024.10.17"]
[Round "6.4"]
[White "Abrahamyan, Tatev"]
[Black "Yip, Carissa"]
[Result "0-1"]
[ECO "C54"]
[WhiteElo "2327"]
[BlackElo "2418"]
[Annotator "TA"]
[PlyCount "104"]
[EventDate "2024.10.09"]
[EventType "tourn"]
[EventCountry "USA"]
[SourceTitle "playchess.com"]
[Source "ChessBase"]
[SourceQuality "1"]
[TimeControl "40/5400+30:1800+30"]

{[%evp 37,104,-385,-416,-375,-379,-380,-358,-447,-425,-445,-450,-431,-429,-418,-362,-375,-347,-341,-264,-237,-221,-208,-101,-163,-102,-94,-101,-108,-88,-120,-132,-143,-145,-161,-139,-134,-132,-121,-117,-124,-124,-441,-443,-461,-410,-483,-454,-499,-493,-668,-658,-910,-659,-1620,-1879,-5074,-4874,-29966,-29967,-29973,-29974,-29975,-29976,-29977,-29978,-29982,-29983,-29984,-29984]} 1. e4 {[%emt 0:00:04]} e5 {[%emt 0:00:05]} 2. Nf3 {[%emt 0:00:11]} Nc6 {[%emt 0:00:07]} 3. Bc4 {[%emt 0:00:04]} Bc5 {[%emt 0:00:05]} 4. c3 {[%emt 0:00:50]} Nf6 {[%emt 0:00:04]} 5. d4 {[%emt 0:00:26]} exd4 {[%emt 0:00:57]} 6. b4 {[%emt 0:00:24] C54: Giuoco Piano: 4 c3 Nf6, main lines with 5 d4 and 5 d3.} Bb6 {[%emt 0:02:12]} 7. e5 {[%emt 0:00:56]} d5 {[%emt 0:00:04]} 8. exf6 {[%emt 0:01:08]} dxc4 {[%emt 0:00:04]} 9. Qe2+ {[%emt 0:00:18]} Be6 {[%emt 0:00:03]} 10. fxg7 {[%emt 0:01:09]} Rg8 {[%emt 0:00:15]} 11. b5 {[%emt 0:00:29]} Ne7 {[%emt 0:09:48]} 12. cxd4 {[%emt 0:15:05]} Rxg7 {[%emt 0:01:13]} 13. Nc3 {[%emt 0:07:21]} Ba5 {[%emt 0:03:17]} 14. Bd2 {[%emt 0:05:46]} Nd5 $146 {[%emt 0:11:58]} ({Predecessor:} 14... Bxc3 15. Bxc3 Rxg2 16. O-O-O Nd5 17. Bb2 Qf6 18. Rhg1 Rxg1 19. Rxg1 O-O-O 20. Ne5 c3 21. Ba3 Qf4+ 22. Kb1 Qxd4 23. Rd1 c2+ 24. Kxc2 Qc3+ {0-1 Torres Bosch,J (2165)-Lacrosse,M (2056) Alicante IRT op 15th 2021 (7)}) 15. Qe5 {[%emt 0:24:43]} f6 {[%emt 0:07:57]} 16. Qh5+ {[%emt 0:11:30]} Bf7 {[%emt 0:00:05]} 17. Qh6 {[%emt 0:00:04]} Rg6 {[%emt 0:00:05]} 18. Qxh7 {[%emt 0:00:04]} Bxc3 {[%emt 0:00:40]} 19. Bxc3 {[%emt 0:00:53]} Nxc3 {[%emt 0:03:20]} 20. O-O {[%emt 0:00:27]} Qd5 {[%emt 0:06:19]} (20... Nxb5 21. Nh4 Rg5 22. Rae1+ Kf8 23. Qh8+ Bg8 24. Qh6+ Kf7 25. f4 $11) 21. Rae1+ {[%emt 0:05:07]} Kf8 {[%emt 0:01:40]} 22. Nh4 {[%emt 0:08:25]} Rg7 {[%emt 0:00:10]} 23. Qh8+ {[%emt 0:00:47]} Bg8 {[%emt 0:00:05]} 24. Re3 {[%emt 0:00:20]} Ne4 {[%emt 0:04:27]} (24... Nxb5 25. Rg3 Qf7 (25... Rxg3 $2 26. fxg3 Ke8 27. Qg7 $19) 26. Qh6 $19) (24... Nxa2 25. Rfe1 Qg5 (25... Qxd4 $2 26. Nf5 $18) 26. f4 (26. Rg3 Re7 $11) 26... Qxf4 27. Rf3 Qxd4+ 28. Kh1 $14) (24... Qxd4 $2 25. Nf5 (25. Qxg7+ Kxg7 26. Nf5+ Kf8 $18) 25... Rh7 26. Qxh7 (26. Nxd4 Rxh8 27. Rxc3 Rd8 $15) 26... Bxh7 27. Nxd4 $18) 25. Qh6 {[%emt 0:06:53]} Qg5 {[%emt 0:00:51]} (25... Qxd4 $2 26. Nf5 Qd7 27. Nxg7 (27. Qxg7+ Qxg7 28. Nxg7 Nd2 $18) 27... Qxg7 28. Qxg7+ Kxg7 29. Rxe4 $18) 26. Qxg5 {[%emt 0:00:06]} Nxg5 {[%emt 0:00:24]} 27. f4 {[%emt 0:00:07]} Nh7 {[%emt 0:06:00]} 28. Rfe1 {[%emt 0:01:48]} Rg4 {[%emt 0:07:20]} 29. g3 {[%emt 0:05:02]} Bf7 {[%emt 0:00:25]} (29... Rg7 $1 $19 {has better winning chances. Threatens to win with ...Rd7.} 30. Kf2 Rd7) 30. Kf2 {[%emt 0:00:27] [#]} (30. Nf5 $17 {might work better.}) 30... Re8 {[%emt 0:00:30]} (30... f5 $1 $19 {[%cal Og4h4] And now ...Rxh4! would win.} 31. Re7 Rc8 32. Nxf5 Nf6) 31. Ra3 $17 {[%emt 0:00:21]} Rxe1 {[%emt 0:04:25]} 32. Kxe1 {[%emt 0:00:01]} Bd5 {[%emt 0:00:06]} 33. Nf5 {[%emt 0:02:02]} Be4 {[%emt 0:00:25]} 34. Ne3 {[%emt 0:00:12]} Rg7 {[%emt 0:00:03]} 35. Rxa7 {[%emt 0:02:51]} Rd7 {[%emt 0:00:29]} 36. d5 {[%emt 0:00:26]} c3 {[%emt 0:07:21]} 37. Rxb7 {[%emt 0:00:36] [#]} Re7 $1 {[%emt 0:00:04]} (37... Bxd5 $6 38. Nxd5 Rxd5 39. Rxc7 Rxb5 40. Kd1 $11) 38. b6 {[%emt 0:00:35]} cxb6 {[%emt 0:04:01]} (38... Bxd5 39. Rb8+ Kf7 40. Kf2 $19) 39. Rxb6 $2 {[%emt 0:01:01][%mdl 8192]} (39. Rb8+ $17 {nothing else works.} Re8 40. Rxe8+ Kxe8 41. Kd1) 39... Bxd5 $19 {[%emt 0:00:19]} 40. Kf2 {[%emt 0:00:33]} Rc7 {[%emt 0:03:44]} ({Weaker is} 40... Bxa2 41. Rc6 $17) 41. Rb1 {[%emt 0:04:52]} Be4 {[%emt 0:00:07]} (41... Bxa2 42. Rc1 f5 43. Nxf5 $19) 42. Rc1 {[%emt 0:00:50]} f5 {[%emt 0:00:03]} 43. h3 {[%emt 0:08:45]} Nf6 {[%emt 0:00:14]} 44. g4 {[%emt 0:00:18]} Nd5 {[%emt 0:00:10]} 45. Nxd5 {[%emt 0:10:37]} Bxd5 {[%emt 0:00:05]} 46. Ke3 {[%emt 0:00:50]} Be4 {[%emt 0:03:59]} 47. gxf5 {[%emt 0:02:12]} Bxf5 {[%emt 0:00:04]} 48. a4 {[%emt 0:00:19]} c2 {[%emt 0:00:06]} 49. a5 {[%emt 0:02:32]} Ra7 {[%emt 0:00:10]} 50. Kd2 {[%emt 0:00:26]} Rxa5 {[%emt 0:00:05]} ({Not} 50... Bxh3 51. Rxc2 Rxa5 52. Rc6 $15) 51. Rg1 {[%emt 0:00:29]} Rd5+ {[%emt 0:00:15]} 52. Kc1 {[%emt 0:00:24]} Rb5 {[%emt 0:00:04]} 0-1

[Event "USA-ch Women 2024"]
[Site "Saint Louis"]
[Date "2024.10.17"]
[Round "6.5"]
[White "Paikidze, Nazi"]
[Black "Zatonskih, Anna"]
[Result "1/2-1/2"]
[ECO "D05"]
[WhiteElo "2314"]
[BlackElo "2312"]
[Annotator "RC"]
[PlyCount "86"]
[EventDate "2024.10.09"]
[EventType "tourn"]
[EventCountry "USA"]
[SourceTitle "playchess.com"]
[Source "ChessBase"]
[SourceQuality "1"]
[TimeControl "40/5400+30:1800+30"]

1. d4 {[%emt 0:00:03]} d5 {[%emt 0:00:16]} 2. Nf3 {[%emt 0:00:08]} e6 {[%emt 0:02:27]} 3. e3 {[%emt 0:00:25]} Nf6 {[%emt 0:02:02]} 4. Bd3 {[%emt 0:01:03]} Bd6 {[%emt 0:08:34]} 5. b3 {[%emt 0:01:02]} O-O {[%emt 0:01:48]} 6. Bb2 {[%emt 0:00:19]} b6 {[%emt 0:08:11]} 7. Nbd2 {[%emt 0:01:50]} Bb7 {[%emt 0:00:42]} 8. Ne5 {[%emt 0:05:44]} Ne4 {[%emt 0:04:48]} 9. Bxe4 {[%emt 0:09:31]} dxe4 {[%emt 0:00:39]} 10. Qg4 {[%emt 0:01:45]} Qe7 {[%emt 0:21:16]} 11. Nec4 {[%emt 0:02:56]} f5 {[%emt 0:01:40]} 12. Qe2 {[%emt 0:06:03]} Nd7 {[%emt 0:00:15]} 13. Nxd6 {[%emt 0:15:21]} cxd6 {[%emt 0:00:27]} 14. h3 {[%emt 0:04:53]} Nf6 {[%emt 0:05:48]} 15. c4 {[%emt 0:02:06]} Qf7 {[%emt 0:04:26]} 16. O-O-O {[%emt 0:01:30]} a5 {[%emt 0:05:01]} 17. g4 {[%emt 0:01:37]} d5 {[%emt 0:05:33]} 18. gxf5 {[%emt 0:03:02]} exf5 {[%emt 0:01:00]} 19. Kb1 {[%emt 0:03:37]} a4 {[%emt 0:04:28]} 20. Rhg1 {[%emt 0:00:30]} Rfc8 {[%emt 0:01:44]} 21. Rg5 {[%emt 0:02:09]} axb3 {[%emt 0:00:12]} 22. axb3 {[%emt 0:00:28]} Ba6 {[%emt 0:04:17]} 23. Rdg1 {[%emt 0:02:18]} Ne8 {[%emt 0:01:28]} 24. Qh5 {[%emt 0:04:43]} Qxh5 {[%emt 0:01:22]} 25. Rxh5 {[%emt 0:00:04]} Nd6 {[%emt 0:01:03]} 26. Ba3 {[%emt 0:15:02]} Bxc4 {[%emt 0:02:12]} 27. Nxc4 {[%emt 0:00:40]} Nxc4 {[%emt 0:00:52]} 28. Bb4 {[%emt 0:01:51]} Na5 {[%emt 0:03:12]} 29. Bxa5 {[%emt 0:08:03]} bxa5 {[%emt 0:04:21]} 30. Rxf5 {[%emt 0:00:05]} Rab8 {[%emt 0:00:58]} 31. Rxd5 {[%emt 0:02:57]} Rxb3+ {[%emt 0:00:08]} 32. Ka2 {[%emt 0:00:50]} a4 {[%emt 0:00:58]} 33. Rc5 {[%emt 0:02:04]} Rxc5 {[%emt 0:00:23]} 34. dxc5 {[%emt 0:00:01]} Rc3 {[%emt 0:00:06]} 35. Rg5 {[%emt 0:01:07]} Kf7 {[%emt 0:01:13]} 36. Kb2 {[%emt 0:00:45]} Rc4 {[%emt 0:01:16]} 37. Rg4 {[%emt 0:00:29]} h5 {[%emt 0:01:06]} 38. Rg5 {[%emt 0:00:37]} g6 {[%emt 0:00:20]} 39. h4 {[%emt 0:01:12]} Kf6 {[%emt 0:00:21]} 40. Rd5 {[%emt 0:00:28]} Kf7 {[%emt 0:02:52]} 41. Rg5 {[%emt 0:01:35]} Kf6 {[%emt 0:02:10]} 42. Rd5 {[%emt 0:01:00]} Kf7 {[%emt 0:01:50]} 43. Rg5 {[%emt 0:00:16]} Kf6 {[%emt 0:01:29]} 1/2-1/2